fUSD/lending_fUSD_20260106
["ID","MTS","AMOUNT","RATE_DAILY","PERIOD"]
[400552579,1767712244778,-151.0,0.00043427,120]
[400552580,1767712244787,-151.0,0.00043427,120]
[400552581,1767712244796,-151.0,0.00043427,120]
[400552582,1767712244805,-151.0,0.00043427,120]
[400552583,1767712244815,-156.153172,0.00043427,120]
[400552584,1767712244824,-151.0,0.00043427,120]
[400552585,1767712244833,-156.153172,0.00043427,120]
[400552586,1767712244842,-156.153172,0.00043427,120]
[400552587,1767712244851,-151.0,0.00043427,120]
[400552588,1767712244860,-156.153172,0.00043427,120]
[400552589,1767712244870,-195.167516,0.00043427,120]
[400552590,1767712244879,-156.153172,0.00043427,120]
[400552591,1767712244890,-159.71777643,0.00043427,31]
[400552592,1767712244899,-3194.89958991,0.00043427,30]
[400552593,1767712244909,-40420.58644339,0.00043427,7]
[400552594,1767712244921,-1097.0,0.00043427,7]
[400552595,1767712244932,-603.23287267,0.00043427,7]
[400552596,1767712244945,-1845713.8926698,0.00043427,7]
[400552597,1767712244956,-1743.04638746,0.00043427,7]
[400552603,1767712246191,-156.153172,0.00043427,120]
[400552604,1767712246201,-156.153172,0.00043427,120]
[400552605,1767712246217,-156.153172,0.00043427,120]
[400552606,1767712246230,-55.703099,0.00043427,120]
[400552607,1767712246243,-100.450073,0.00043427,120]
[400552608,1767712246253,-156.153172,0.00043427,120]
[400552609,1767712246262,-1789.573614,0.00043427,7]
[400552610,1767712246274,-257.42503718,0.00043427,7]
[400552611,1767712246286,-367.62606698,0.00043427,7]
[400552612,1767712246320,-13861.54804547,0.00043427,7]
[400552613,1767712246478,-2756.01588973,0.00043427,7]
[400552614,1767712246490,-99882.94622313,0.00043427,7]
[400552615,1767712246502,-1903.37260059,0.00043427,7]
[400552616,1767712246570,-156.153172,0.00043427,120]
[400552617,1767712246579,-477.25682799,0.00043427,7]
[400552618,1767712246590,-657.65642569,0.00043427,7]
[400552651,1767712297503,418.86,0.00020839,2]
[400552696,1767712402848,200.0,0.00019082,2]
[400552722,1767712451838,509.33,0.000202,30]
[400552727,1767712502757,509.33,0.00032877,120]
[400552731,1767712696744,151.0,0.00020664,2]
[400552733,1767712713987,151.0,0.00020757,2]
[400552735,1767712730459,151.0,0.00020757,2]
[400552736,1767712741662,3582.66745032,0.000199,2]
[400552737,1767712746970,151.0,0.00020771,2]
[400552738,1767712764164,151.0,0.00020798,2]
[400552739,1767712780694,151.0,0.00020798,2]
[400552741,1767712797141,151.0,0.00020781,2]
[400552745,1767712842419,369.52,0.00032773,120]
[400552750,1767712869982,1000.0,0.0002112,2]
[400552751,1767712914271,151.0,0.00020633,2]
[400552752,1767712965614,151.0,0.00020681,2]
[400552753,1767712982297,151.0,0.00020687,2]
[400552754,1767712998822,151.0,0.00020687,2]
[400552755,1767713016100,151.0,0.00020687,2]
[400552756,1767713032617,151.0,0.00020678,2]
[400552757,1767713049945,151.0,0.00020678,2]
[400552758,1767713107754,170276.0,0.00018,2]
[400552759,1767713107787,2000000.0,0.00018,2]
[400552761,1767713165929,-30305.4572177,0.00016,2]
[400552767,1767713289833,1000.0,0.000135,2]
[400552769,1767713307920,450.04525315,0.000246,120]
[400552770,1767713312343,2274.35837545,0.0001421,7]
[400552771,1767713348287,-871.4728444,0.000162,5]
[400552772,1767713356095,-195.0,0.000169,2]
[400552773,1767713356118,-195.0,0.00017519,2]
[400552774,1767713356140,-300.0,0.000176,2]
[400552775,1767713356162,-305.71308607,0.000177,5]
[400552782,1767713432227,-97.28691393,0.000177,5]
[400552784,1767713432236,-424.72961453,0.000178,2]
[400552787,1767713432347,-175.27038547,0.000178,2]
[400552788,1767713432356,-300.0,0.0001782,2]
[400552789,1767713432366,-195.0,0.0001782,2]
[400552790,1767713432375,-250.0,0.0001782,2]
[400552791,1767713432384,-2580.6,0.0001784,2]
[400552792,1767713432393,-300.0,0.00017899,2]
[400552793,1767713432403,-1200.0,0.00017899,2]
[400552794,1767713432413,-300.0,0.00017899,2]
[400552795,1767713432422,-50.12961453,0.000179,2]
[400552796,1767713432434,-164.18034595,0.000179,2]
[400552797,1767713432444,-435.39820958,0.000179,2]
[400552798,1767713432454,-343.58377853,0.000179,2]
[400552799,1767713432463,-365.58933724,0.000179,2]
[400552800,1767713432473,-292.0826817,0.000179,2]
[400552801,1767713432482,-614.744944,0.000179,2]
[400552802,1767713432491,-550.0,0.00017999,2]
[400552803,1767713432500,-191.3750789,0.00017999,2]
[400552804,1767713432510,-500.0,0.00017999,2]
[400552805,1767713432520,-500.0,0.00017999,2]
[400552806,1767713432531,-467.61451291,0.00017999,2]
[400552807,1767713432542,-500.0,0.00017999,2]
[400552808,1767713432551,-500.0,0.00017999,2]
[400552809,1767713432561,-500.0,0.00017999,2]
[400552810,1767713432571,-500.0,0.00017999,2]
[400552811,1767713432583,-500.0,0.00017999,2]
[400552812,1767713432593,-500.0,0.00017999,2]
[400552813,1767713432603,-500.0,0.00017999,2]
[400552815,1767713432612,-500.0,0.00017999,2]
[400552817,1767713432622,-500.0,0.00017999,2]
[400552819,1767713432631,-49.50475735,0.00017999,2]
[400552821,1767713432643,-450.49524265,0.00017999,2]
[400552823,1767713432652,-500.0,0.00017999,2]
[400552825,1767713432661,-500.0,0.00017999,2]
[400552826,1767713432670,-500.0,0.00017999,2]
[400552828,1767713432678,-500.0,0.00017999,2]
[400552829,1767713432687,-500.0,0.00017999,2]
[400552831,1767713432696,-500.0,0.00017999,2]
[400552833,1767713432706,-114.26475735,0.00017999,2]
[400552835,1767713432718,-385.73524265,0.00017999,2]
[400552837,1767713432727,-500.0,0.00017999,2]
[400552839,1767713432736,-500.0,0.00017999,2]
[400552841,1767713432745,-500.0,0.00017999,2]
[400552843,1767713432754,-500.0,0.00017999,2]
[400552845,1767713432763,-500.0,0.00017999,2]
[400552847,1767713432772,-500.0,0.00017999,2]
[400552848,1767713432781,-258.26612781,0.00017999,2]
[400552849,1767713432817,-241.73387219,0.00017999,2]
[400552850,1767713432827,-500.0,0.00017999,2]
[400552851,1767713432836,-500.0,0.00017999,2]
[400552852,1767713432845,-500.0,0.00017999,2]
[400552853,1767713432854,-500.0,0.00017999,2]
[400552854,1767713432863,-500.0,0.00017999,2]
[400552855,1767713432872,-500.0,0.00017999,2]
[400552856,1767713432882,-57.48703596,0.00017999,2]
[400552857,1767713432922,-442.51296404,0.00017999,2]
[400552858,1767713432932,-500.0,0.00017999,2]
[400552859,1767713432941,-500.0,0.00017999,2]
[400552860,1767713432950,-444.69939787,0.00017999,2]
[400552861,1767713432959,-500.0,0.00017999,2]
[400552862,1767713432968,-500.0,0.00017999,2]
[400552863,1767713432978,-500.0,0.00017999,2]
[400552864,1767713432988,-500.0,0.00017999,2]
[400552865,1767713432998,-500.0,0.00017999,2]
[400552866,1767713433008,-500.0,0.00017999,2]
[400552867,1767713433018,-500.0,0.00017999,2]
[400552868,1767713433028,-500.0,0.00017999,2]
[400552869,1767713433038,-96396.44344301,0.00018,2]
[400552870,1767713433055,-500.0,0.00017999,2]
[400552871,1767713433065,-682.79273477,0.00018,2]
[400552872,1767713433077,-4105.49267856,0.00018,2]
[400552873,1767713438356,-500.0,0.00017999,2]
[400552875,1767713438366,-500.0,0.00017999,2]
[400552877,1767713438376,-457.29023885,0.00017999,2]
[400552879,1767713438388,-42.70976115,0.00017999,2]
[400552880,1767713438398,-284.09023875,0.00017999,2]
[400552881,1767713438410,-215.90976125,0.00017999,2]
[400552882,1767713438419,-460.29023885,0.00017999,2]
[400552883,1767713438431,-39.70976115,0.00017999,2]
[400552884,1767713438442,-500.0,0.00017999,2]
[400552885,1767713438453,-500.0,0.00017999,2]
[400552886,1767713438462,-500.0,0.00017999,2]
[400552887,1767713438473,-500.0,0.00017999,2]
[400552888,1767713438482,-500.0,0.00017999,2]
[400552889,1767713438492,-500.0,0.00017999,2]
[400552890,1767713438502,-500.0,0.00017999,2]
[400552891,1767713438511,-500.0,0.00017999,2]
[400552892,1767713438521,-500.0,0.00017999,2]
[400552893,1767713438532,-500.0,0.00017999,2]
[400552894,1767713438543,-500.0,0.00017999,2]
[400552895,1767713438553,-500.0,0.00017999,2]
[400552896,1767713438562,-500.0,0.00017999,2]
[400552897,1767713438571,-500.0,0.00017999,2]
[400552898,1767713438581,-105.48185185,0.00017999,2]
[400552899,1767713438592,-394.51814815,0.00017999,2]
[400552900,1767713438601,-500.0,0.00017999,2]
[400552901,1767713438612,-250.0,0.00017999,2]
[400552902,1767713438621,-145.15750722,0.00018,2]
[400552917,1767713438811,-2732694.64606952,0.00018,2]
[400552920,1767713438822,-3683492.9549527,0.00018,2]
[400552923,1767713438849,-3545.62120439,0.00018,2]
[400552926,1767713438866,-18880.38974994,0.00018,2]
[400552928,1767713438877,-29031.7208,0.00018,2]
[400552930,1767713438889,-607.42013645,0.00018,2]
[400553075,1767713440513,-3398.94524865,0.00018,2]
[400553078,1767713440541,-4041.54359857,0.00018,2]
[400553081,1767713440553,-671.73139839,0.00018,2]
[400553083,1767713440565,-445.5993655,0.00018,2]
[400553100,1767713440723,-1405.08006027,0.00018,2]
[400553102,1767713440736,-18165.72006814,0.00018,2]
[400553104,1767713440747,-372.86839505,0.00018,2]
[400553107,1767713440759,-591.46997237,0.00018,2]
[400553109,1767713440770,-430.4257349,0.00018,2]
[400553111,1767713440782,-2844.23565072,0.00018,2]
[400553195,1767713444343,-275.29432339,0.00018,2]
[400553197,1767713444375,-262260.40472266,0.00018,2]
[400553198,1767713444483,-490.0,0.00018,2]
[400553199,1767713444495,-3065.82931984,0.00018,2]
[400553200,1767713444506,-713.13,0.00018,2]
[400553201,1767713444518,-23902.15,0.00018,2]
[400553202,1767713444529,-403.92,0.00018,2]
[400553203,1767713444543,-5758.36176899,0.00018,2]
[400553204,1767713445683,-46899.86856958,0.00018,2]
[400553205,1767713445695,-259.19169647,0.00018,2]
[400553206,1767713445706,-2493.1,0.00018,2]
[400553207,1767713445717,-649.83334176,0.00018,2]
[400553208,1767713445729,-6019.73832867,0.00018,2]
[400553210,1767713445751,-43465.0,0.00018,2]
[400553237,1767713446399,-4967.69903148,0.00018,2]
[400553239,1767713446411,-888.0,0.00018,2]
[400553240,1767713446423,-21081.93965176,0.00018,2]
[400553241,1767713446435,-2954.93571423,0.00018,2]
[400553242,1767713446447,-57026.92558424,0.00018,2]
[400553245,1767713446458,-322.8916,0.00018,2]
[400553247,1767713446470,-3495.83514778,0.00018,2]
[400553271,1767713446698,-58712.74409333,0.00018,2]
[400553274,1767713446710,-8031.52959356,0.00018,2]
[400553302,1767713477387,5000.0,0.00032877,120]
[400553303,1767713527159,5045.14,0.00032877,120]
[400553304,1767713693020,-250.0,0.00017,2]
[400553305,1767713693041,-1062.54,0.00017245,2]
[400553306,1767713693064,-931.132,0.0001764,2]
[400553307,1767713693084,-195.0,0.00017705,2]
[400553308,1767713693104,-2500.0,0.00017705,2]
[400553309,1767713693125,-195.0,0.0001777,2]
[400553310,1767713693146,-600.0,0.0001777,2]
[400553311,1767713693167,-195.0,0.0001781,2]
[400553312,1767713693188,-300.0,0.00017847,2]
[400553313,1767713693208,-600.0,0.00017848,2]
[400553314,1767713693229,-600.0,0.00017848,2]
[400553315,1767713693249,-26000.81187496,0.00017892,2]
[400553316,1767713693269,-550.0,0.00017899,2]
[400553317,1767713693291,-2053.60995664,0.000179,2]
[400553318,1767713693313,-33567.36341125,0.000179,2]
[400553319,1767713693333,-220.75068873,0.000179,2]
[400553320,1767713693354,-713.1593532,0.000179,2]
[400553321,1767713693374,-362.8318413,0.000179,2]
[400553322,1767713693395,-250.0,0.00017901,2]
[400553323,1767713693416,-2053.60995658,0.00017902,2]
[400553324,1767713693438,-2053.60995658,0.00017904,2]
[400553325,1767713693460,-2053.60995658,0.00017906,2]
[400553326,1767713693483,-2053.60995658,0.00017908,2]
[400553327,1767713693504,-2053.60995658,0.00017909,2]
[400553328,1767713693526,-2053.60995658,0.00017911,2]
[400553329,1767713693549,-2053.60995658,0.00017913,2]
[400553330,1767713693572,-2053.60995658,0.00017915,2]
[400553331,1767713693595,-2053.60995658,0.00017917,2]
[400553332,1767713693618,-500.0,0.00017973,2]
[400553333,1767713693639,-151.0,0.00017989,2]
[400553334,1767713693662,-151.0,0.00017989,2]
[400553335,1767713693684,-151.0,0.00017989,2]
[400553336,1767713693705,-151.0,0.00017989,2]
[400553337,1767713693727,-151.0,0.00017989,2]
[400553338,1767713693748,-151.0,0.00017989,2]
[400553339,1767713693769,-151.0,0.00017989,2]
[400553340,1767713693791,-151.0,0.00017989,2]
[400553341,1767713693813,-151.0,0.00017989,2]
[400553342,1767713693835,-151.0,0.00017989,2]
[400553343,1767713693855,-151.0,0.00017989,2]
[400553344,1767713693877,-500.0,0.00017997,2]
[400553345,1767713693897,-501.81860917,0.00017997,2]
[400553346,1767713693918,-163.06827921,0.00017997,2]
[400553347,1767713693944,-500.0,0.00017997,2]
[400553348,1767713693968,-500.0,0.00017997,2]
[400553349,1767713693989,-500.0,0.00017997,2]
[400553350,1767713694014,-500.0,0.00017997,2]
[400553351,1767713694037,-500.0,0.00017997,2]
[400553352,1767713694062,-500.0,0.00017997,2]
[400553353,1767713694086,-500.0,0.00017997,2]
[400553354,1767713694108,-500.0,0.00017997,2]
[400553355,1767713694130,-500.0,0.00017997,2]
[400553356,1767713694156,-500.0,0.00017997,2]
[400553357,1767713694178,-500.0,0.00017997,2]
[400553358,1767713694200,-500.0,0.00017997,2]
[400553359,1767713694226,-500.0,0.00017997,2]
[400553360,1767713694248,-500.0,0.00017997,2]
[400553361,1767713694271,-500.0,0.00017997,2]
[400553362,1767713694296,-200.00000001,0.00017997,2]
[400553363,1767713694320,-500.0,0.00017997,2]
[400553364,1767713694343,-500.0,0.00017997,2]
[400553365,1767713694366,-500.0,0.00017997,2]
[400553366,1767713694389,-500.0,0.00017997,2]
[400553367,1767713694413,-500.0,0.00017997,2]
[400553368,1767713694436,-500.0,0.00017997,2]
[400553369,1767713694460,-500.0,0.00017997,2]
[400553370,1767713694483,-500.0,0.00017997,2]
[400553371,1767713694505,-500.0,0.00017997,2]
[400553372,1767713694527,-500.0,0.00017997,2]
[400553373,1767713694549,-500.0,0.00017997,2]
[400553374,1767713694573,-500.0,0.00017997,2]
[400553375,1767713694596,-500.0,0.00017997,2]
[400553376,1767713694621,-500.0,0.00017997,2]
[400553377,1767713694645,-500.0,0.00017997,2]
[400553378,1767713694667,-500.0,0.00017997,2]
[400553379,1767713694690,-500.0,0.00017997,2]
[400553380,1767713694712,-400.30077163,0.00017997,2]
[400553381,1767713694733,-500.0,0.00017997,2]
[400553382,1767713694755,-500.0,0.00017997,2]
[400553383,1767713694777,-500.0,0.00017997,2]
[400553384,1767713694799,-500.0,0.00017997,2]
[400553385,1767713694823,-500.0,0.00017997,2]
[400553386,1767713694848,-500.0,0.00017997,2]
[400553387,1767713694871,-500.0,0.00017997,2]
[400553388,1767713694897,-500.0,0.00017997,2]
[400553389,1767713694922,-500.0,0.00017997,2]
[400553390,1767713694947,-500.0,0.00017997,2]
[400553391,1767713694971,-500.0,0.00017997,2]
[400553392,1767713694995,-500.0,0.00017997,2]
[400553393,1767713695020,-500.0,0.00017997,2]
[400553394,1767713695044,-500.0,0.00017997,2]
[400553395,1767713695069,-500.0,0.00017997,2]
[400553396,1767713695093,-500.0,0.00017997,2]
[400553397,1767713695120,-500.0,0.00017997,2]
[400553398,1767713695145,-500.0,0.00017997,2]
[400553399,1767713695169,-500.0,0.00017997,2]
[400553400,1767713695193,-500.0,0.00017997,2]
[400553401,1767713695217,-500.0,0.00017997,2]
[400553402,1767713695241,-500.0,0.00017997,2]
[400553403,1767713695266,-500.0,0.00017997,2]
[400553404,1767713695292,-500.0,0.00017997,2]
[400553405,1767713695317,-500.0,0.00017997,2]
[400553406,1767713695343,-500.0,0.00017997,2]
[400553407,1767713695366,-500.0,0.00017997,2]
[400553408,1767713695391,-500.0,0.00017997,2]
[400553409,1767713695416,-500.0,0.00017997,2]
[400553410,1767713695442,-500.0,0.00017997,2]
[400553411,1767713695468,-500.0,0.00017997,2]
[400553412,1767713695494,-500.0,0.00017997,2]
[400553413,1767713695522,-500.0,0.00017997,2]
[400553414,1767713695546,-500.0,0.00017997,2]
[400553415,1767713695575,-500.0,0.00017997,2]
[400553416,1767713695601,-500.0,0.00017997,2]
[400553417,1767713695628,-500.0,0.00017997,2]
[400553418,1767713695657,-500.0,0.00017997,2]
[400553419,1767713695682,-500.0,0.00017997,2]
[400553420,1767713695709,-500.0,0.00017997,2]
[400553421,1767713695734,-500.0,0.00017997,2]
[400553422,1767713695759,-500.0,0.00017997,2]
[400553423,1767713695781,-500.0,0.00017997,2]
[400553424,1767713695803,-509.49377493,0.00017999,2]
[400553425,1767713695826,-500.0,0.00017999,2]
[400553426,1767713695848,-500.0,0.00017999,2]
[400553427,1767713695870,-220.50523453,0.00017999,2]
[400553428,1767713695891,-500.0,0.00017999,2]
[400553429,1767713695911,-500.0,0.00017999,2]
[400553430,1767713695933,-1077.55509592,0.00017999,5]
[400553431,1767713695955,-300.0,0.00017999,2]
[400553432,1767713695977,-500.0,0.00017999,2]
[400553433,1767713695999,-317.99450546,0.00017999,2]
[400553434,1767713696023,-864018.57499384,0.00018,2]
[400553435,1767713799844,7166.0,0.00032877,120]
[400553437,1767713875329,-841.599925,0.0001781,2]
[400553438,1767713875350,-475.4395688,0.000179,2]
[400553439,1767713875373,-5052.10280178,0.000179,2]
[400553440,1767713875394,-173.19162943,0.000179,2]
[400553441,1767713875417,-302.35986775,0.000179,2]
[400553442,1767713875442,-1229.91,0.00017989,2]
[400553443,1767713875470,-151.0,0.00017989,2]
[400553444,1767713875496,-151.0,0.00017989,2]
[400553445,1767713875525,-151.0,0.00017989,2]
[400553446,1767713875555,-151.0,0.00017989,2]
[400553447,1767713875579,-151.0,0.00017989,2]
[400553448,1767713875603,-151.0,0.00017989,2]
[400553449,1767713875626,-151.0,0.00017989,2]
[400553450,1767713875653,-151.0,0.00017989,2]
[400553451,1767713875681,-151.0,0.00017989,2]
[400553452,1767713875708,-151.0,0.00017989,2]
[400553453,1767713875746,-151.0,0.00017989,2]
[400553454,1767713875775,-151.0,0.00017989,2]
[400553455,1767713875799,-151.0,0.00017989,2]
[400553456,1767713875824,-151.0,0.00017989,2]
[400553457,1767713875848,-151.0,0.00017989,2]
[400553458,1767713875873,-188.48506562,0.00017989,2]
[400553459,1767713875898,-151.0,0.00017989,2]
[400553460,1767713875923,-151.0,0.00017989,2]
[400553461,1767713875949,-151.0,0.00017989,2]
[400553462,1767713875975,-151.0,0.00017989,2]
[400553463,1767713876000,-151.0,0.00017989,2]
[400553464,1767713876023,-151.0,0.00017989,2]
[400553465,1767713876045,-151.0,0.00017989,2]
[400553466,1767713876067,-151.0,0.00017989,2]
[400553467,1767713876089,-300.0,0.00017996,2]
[400553468,1767713876111,-1200.0,0.00017996,2]
[400553469,1767713876132,-550.0,0.00017996,2]
[400553470,1767713876152,-600.0,0.00017997,2]
[400553471,1767713876174,-250.0,0.00017997,2]
[400553472,1767713876197,-151.0,0.00017997,2]
[400553473,1767713876241,-500.0,0.00017999,2]
[400553474,1767713876270,-500.0,0.00017999,2]
[400553475,1767713876305,-500.0,0.00017999,2]
[400553476,1767713876332,-500.0,0.00017999,2]
[400553477,1767713876364,-500.0,0.00017999,2]
[400553478,1767713876391,-500.0,0.00017999,2]
[400553479,1767713876419,-500.0,0.00017999,2]
[400553480,1767713876448,-500.0,0.00017999,2]
[400553481,1767713876474,-500.0,0.00017999,2]
[400553482,1767713876506,-500.0,0.00017999,2]
[400553483,1767713876531,-500.0,0.00017999,2]
[400553484,1767713876558,-500.0,0.00017999,2]
[400553485,1767713876583,-500.0,0.00017999,2]
[400553486,1767713876610,-500.0,0.00017999,2]
[400553487,1767713876635,-500.0,0.00017999,2]
[400553488,1767713876667,-500.0,0.00017999,2]
[400553489,1767713876694,-500.0,0.00017999,2]
[400553490,1767713876739,-500.0,0.00017999,2]
[400553491,1767713876765,-500.0,0.00017999,2]
[400553492,1767713876788,-500.0,0.00017999,2]
[400553493,1767713876815,-500.0,0.00017999,2]
[400553494,1767713876841,-500.0,0.00017999,2]
[400553495,1767713876869,-500.0,0.00017999,2]
[400553496,1767713876895,-500.0,0.00017999,2]
[400553497,1767713876924,-500.0,0.00017999,2]
[400553498,1767713876951,-500.0,0.00017999,2]
[400553499,1767713876980,-500.0,0.00017999,2]
[400553500,1767713877006,-500.0,0.00017999,2]
[400553501,1767713877031,-500.0,0.00017999,2]
[400553502,1767713877060,-500.0,0.00017999,2]
[400553503,1767713877088,-500.0,0.00017999,2]
[400553504,1767713877112,-500.0,0.00017999,2]
[400553505,1767713877139,-500.0,0.00017999,2]
[400553506,1767713877165,-500.0,0.00017999,2]
[400553507,1767713877194,-500.0,0.00017999,2]
[400553508,1767713877225,-500.0,0.00017999,2]
[400553509,1767713877256,-500.0,0.00017999,2]
[400553510,1767713877282,-500.0,0.00017999,2]
[400553511,1767713877310,-500.0,0.00017999,2]
[400553512,1767713877337,-500.0,0.00017999,2]
[400553513,1767713877360,-500.0,0.00017999,2]
[400553514,1767713877389,-500.0,0.00017999,2]
[400553515,1767713877415,-500.0,0.00017999,2]
[400553516,1767713877441,-500.0,0.00017999,2]
[400553517,1767713877473,-500.0,0.00017999,2]
[400553518,1767713877501,-371.60263537,0.00017999,2]
[400553519,1767713877526,-500.0,0.00017999,2]
[400553520,1767713877551,-500.0,0.00017999,2]
[400553521,1767713877579,-500.0,0.00017999,2]
[400553522,1767713877793,-500.0,0.00017999,2]
[400553523,1767713877822,-500.0,0.00017999,2]
[400553524,1767713877845,-485.63926119,0.00017999,2]
[400553525,1767713877868,-500.0,0.00017999,2]
[400553526,1767713877891,-500.0,0.00017999,2]
[400553527,1767713877918,-500.0,0.00017999,2]
[400553528,1767713877941,-500.0,0.00017999,2]
[400553529,1767713877972,-500.0,0.00017999,2]
[400553530,1767713877996,-500.0,0.00017999,2]
[400553531,1767713878025,-500.0,0.00017999,2]
[400553532,1767713878050,-500.0,0.00017999,2]
[400553533,1767713878074,-500.0,0.00017999,2]
[400553534,1767713878098,-500.0,0.00017999,2]
[400553535,1767713878126,-500.0,0.00017999,2]
[400553536,1767713878152,-500.0,0.00017999,2]
[400553537,1767713878178,-500.0,0.00017999,2]
[400553538,1767713878205,-500.0,0.00017999,2]
[400553539,1767713878235,-500.0,0.00017999,2]
[400553540,1767713878262,-500.0,0.00017999,2]
[400553541,1767713878289,-500.0,0.00017999,2]
[400553542,1767713878316,-500.0,0.00017999,2]
[400553543,1767713878343,-500.0,0.00017999,2]
[400553544,1767713878372,-500.0,0.00017999,2]
[400553545,1767713878399,-500.0,0.00017999,2]
[400553546,1767713878428,-500.0,0.00017999,2]
[400553547,1767713878454,-500.0,0.00017999,2]
[400553548,1767713878480,-500.0,0.00017999,2]
[400553549,1767713878506,-500.0,0.00017999,2]
[400553550,1767713878534,-500.0,0.00017999,2]
[400553551,1767713878562,-500.0,0.00017999,2]
[400553552,1767713878589,-500.0,0.00017999,2]
[400553553,1767713878618,-500.0,0.00017999,2]
[400553554,1767713878647,-500.0,0.00017999,2]
[400553555,1767713878676,-500.0,0.00017999,2]
[400553556,1767713878703,-500.0,0.00017999,2]
[400553557,1767713878729,-500.0,0.00017999,2]
[400553558,1767713878756,-500.0,0.00017999,2]
[400553559,1767713878782,-500.0,0.00017999,2]
[400553560,1767713878808,-500.0,0.00017999,2]
[400553561,1767713878832,-500.0,0.00017999,2]
[400553562,1767713878859,-500.0,0.00017999,2]
[400553563,1767713878883,-500.0,0.00017999,2]
[400553564,1767713878910,-500.0,0.00017999,2]
[400553565,1767713878938,-500.0,0.00017999,2]
[400553566,1767713878963,-300.0,0.00017999,2]
[400553567,1767713878990,-550.0,0.00017999,2]
[400553568,1767713879016,-438005.66924506,0.00018,2]
[400553571,1767713904069,-151.0,0.00017989,2]
[400553572,1767713904091,-151.0,0.00017989,2]
[400553573,1767713904113,-151.0,0.00017989,2]
[400553574,1767713904136,-49547.0,0.00018,2]
[400553579,1767714067513,841.876323,7.945e-05,2]
[400553580,1767714067604,563.0,0.00032,120]
[400553581,1767714078032,-301.0,0.00017771,2]
[400553582,1767714078057,-528.5278608,0.000179,2]
[400553583,1767714078082,-316.95971254,0.000179,2]
[400553584,1767714078106,-156.65295915,0.000179,2]
[400553585,1767714078133,-575.11816239,0.0001799,2]
[400553586,1767714078160,-575.11816239,0.0001799,2]
[400553587,1767714078185,-300.0,0.00017998,2]
[400553588,1767714078209,-1200.0,0.00017998,2]
[400553589,1767714078234,-500.0,0.00017999,2]
[400553590,1767714078258,-500.0,0.00017999,2]
[400553591,1767714078283,-550.0,0.00017999,2]
[400553592,1767714078307,-500.0,0.00017999,2]
[400553593,1767714078330,-500.0,0.00017999,2]
[400553594,1767714078354,-500.0,0.00017999,2]
[400553595,1767714078378,-500.0,0.00017999,2]
[400553596,1767714078402,-500.0,0.00017999,2]
[400553597,1767714078426,-500.0,0.00017999,2]
[400553598,1767714078449,-357.35894904,0.00017999,2]
[400553599,1767714078473,-500.0,0.00017999,2]
[400553600,1767714078498,-500.0,0.00017999,2]
[400553601,1767714078521,-500.0,0.00017999,2]
[400553602,1767714078544,-500.0,0.00017999,2]
[400553603,1767714078569,-500.0,0.00017999,2]